[Event "Late-Titled-Tuesday-Blitz-October-17-2023"]
[Site "Chess.com"]
[Date "2023.10.17"]
[Round "2"]
[White "zverr1"]
[Black "German_Bazeev"]
[Result "0-1"]
[WhiteElo "2517"]
[BlackElo "2797"]
[TimeControl "180+1"]
[EndTime "14:17:32 PDT"]
[Termination "German_Bazeev won on time"]

1. e4 {[%clk 0:03:00.9]} 1... c5 {[%clk 0:02:57.4]} 2. Nf3 {[%clk 0:03:00.7]}
2... Nc6 {[%clk 0:02:58]} 3. d4 {[%clk 0:03:00.9]} 3... cxd4 {[%clk 0:02:58.9]}
4. Nxd4 {[%clk 0:03:01.8]} 4... Nf6 {[%clk 0:02:59.5]} 5. Nc3 {[%clk 0:03:02.2]}
5... d6 {[%clk 0:02:59.8]} 6. Be2 {[%clk 0:02:52.8]} 6... e5 {[%clk 0:02:59.4]}
7. Nxc6 {[%clk 0:02:49.3]} 7... bxc6 {[%clk 0:03:00.3]} 8. O-O {[%clk
0:02:48.9]} 8... Be7 {[%clk 0:03:00.8]} 9. Bg5 {[%clk 0:02:47.2]} 9... O-O
{[%clk 0:02:59.2]} 10. Bf3 {[%clk 0:02:42.5]} 10... h6 {[%clk 0:02:57.4]} 11.
Bxf6 {[%clk 0:02:41]} 11... Bxf6 {[%clk 0:02:58.3]} 12. Qd3 {[%clk 0:02:36.6]}
12... Rb8 {[%clk 0:02:56.5]} 13. b3 {[%clk 0:02:33]} 13... Qa5 {[%clk
0:02:44.3]} 14. Na4 {[%clk 0:02:12.5]} 14... Ba6 {[%clk 0:02:40]} 15. c4 {[%clk
0:02:12.5]} 15... Rfd8 {[%clk 0:02:40.6]} 16. Rfd1 {[%clk 0:02:06.8]} 16... Qc7
{[%clk 0:02:15.5]} 17. Rac1 {[%clk 0:02:01.4]} 17... Bg5 {[%clk 0:02:12.2]} 18.
Rc2 {[%clk 0:01:59.1]} 18... g6 {[%clk 0:02:07.6]} 19. g3 {[%clk 0:01:58.6]}
19... h5 {[%clk 0:02:06.9]} 20. h4 {[%clk 0:01:58.9]} 20... Bh6 {[%clk 0:02:07]}
21. Bg2 {[%clk 0:01:49]} 21... Kg7 {[%clk 0:02:06.5]} 22. Bf3 {[%clk 0:01:43.9]}
22... Kh7 {[%clk 0:02:04.5]} 23. Bg2 {[%clk 0:01:43.5]} 23... Qe7 {[%clk
0:01:52.3]} 24. Qc3 {[%clk 0:01:34.4]} 24... c5 {[%clk 0:01:42.4]} 25. Qa5
{[%clk 0:01:20.2]} 25... Bc8 {[%clk 0:01:37.7]} 26. Nc3 {[%clk 0:01:16.5]} 26...
Bg4 {[%clk 0:01:35.7]} 27. Nd5 {[%clk 0:01:06.4]} 27... Qb7 {[%clk 0:01:21.7]}
28. Rd3 {[%clk 0:00:56.5]} 28... Kg7 {[%clk 0:01:16.6]} 29. Kh2 {[%clk
0:00:52.4]} 29... g5 {[%clk 0:01:12.6]} 30. Bf3 {[%clk 0:00:32.3]} 30... Be6
{[%clk 0:01:06.2]} 31. Qe1 {[%clk 0:00:22.3]} 31... gxh4 {[%clk 0:00:44.1]} 32.
gxh4 {[%clk 0:00:23.2]} 32... Rg8 {[%clk 0:00:44.5]} 33. Bxh5 {[%clk 0:00:18]}
33... Kf8 {[%clk 0:00:43.7]} 34. Rg3 {[%clk 0:00:12.5]} 34... Rh8 {[%clk
0:00:38]} 35. Kg1 {[%clk 0:00:04.4]} 35... Bxd5 {[%clk 0:00:36.6]} 36. exd5
{[%clk 0:00:05.1]} 36... Bf4 {[%clk 0:00:37.3]} 37. Qe2 {[%clk 0:00:02.1]} 37...
Qe7 {[%clk 0:00:31.7]} 38. Rh3 {[%clk 0:00:01.4]} 38... f5 {[%clk 0:00:27.7]}
39. Kh1 {[%clk 0:00:01.7]} 39... Qf6 {[%clk 0:00:26.3]} 0-1

[Event "Late-Titled-Tuesday-Blitz-October-17-2023"]
[Site "Chess.com"]
[Date "2023.10.17"]
[Round "2"]
[White "nitpicker"]
[Black "DarkAlekhine"]
[Result "0-1"]
[WhiteElo "2247"]
[BlackElo "2677"]
[TimeControl "180+1"]
[EndTime "14:17:33 PDT"]
[Termination "DarkAlekhine won on time"]

1. d4 {[%clk 0:03:00.9]} 1... Nf6 {[%clk 0:02:59.9]} 2. c4 {[%clk 0:03:00.8]}
2... e6 {[%clk 0:03:00.1]} 3. g3 {[%clk 0:03:00.6]} 3... d5 {[%clk 0:02:56.8]}
4. Nf3 {[%clk 0:03:00.3]} 4... Bb4+ {[%clk 0:02:56.8]} 5. Bd2 {[%clk 0:02:59.4]}
5... Bd6 {[%clk 0:02:55.1]} 6. Qc2 {[%clk 0:02:58.5]} 6... Nbd7 {[%clk
0:02:47.7]} 7. Bf4 {[%clk 0:02:47.8]} 7... Bxf4 {[%clk 0:02:23]} 8. gxf4 {[%clk
0:02:48.7]} 8... O-O {[%clk 0:02:23.1]} 9. Bg2 {[%clk 0:02:47.8]} 9... b6 {[%clk
0:02:14.2]} 10. cxd5 {[%clk 0:02:38.8]} 10... Nxd5 {[%clk 0:02:13.7]} 11. Ne5
{[%clk 0:02:31]} 11... Bb7 {[%clk 0:02:13.7]} 12. O-O {[%clk 0:02:18.2]} 12...
c5 {[%clk 0:02:06]} 13. Nxd7 {[%clk 0:02:05.6]} 13... Qxd7 {[%clk 0:02:06.9]}
14. dxc5 {[%clk 0:01:26.7]} 14... Rac8 {[%clk 0:02:06.4]} 15. e3 {[%clk
0:01:17.5]} 15... Rxc5 {[%clk 0:02:06.1]} 16. Qe2 {[%clk 0:01:16.9]} 16... Rfc8
{[%clk 0:01:44.8]} 17. Na3 {[%clk 0:01:11.2]} 17... Qa4 {[%clk 0:01:41.3]} 18.
Rfd1 {[%clk 0:01:01.4]} 18... g6 {[%clk 0:01:41.2]} 19. h3 {[%clk 0:00:46.7]}
19... Nc3 {[%clk 0:01:24.1]} 20. bxc3 {[%clk 0:00:38.5]} 20... Bxg2 {[%clk
0:01:24.5]} 21. Kxg2 {[%clk 0:00:28.3]} 21... Qxa3 {[%clk 0:01:24.8]} 22. Rd7
{[%clk 0:00:26.1]} 22... R5c7 {[%clk 0:01:25]} 23. Rad1 {[%clk 0:00:23.8]} 23...
Qxc3 {[%clk 0:01:21.4]} 24. Rd8+ {[%clk 0:00:09.3]} 24... Rxd8 {[%clk
0:01:19.8]} 25. Rxd8+ {[%clk 0:00:08.6]} 25... Kg7 {[%clk 0:01:20.5]} 26. Qf3
{[%clk 0:00:05.9]} 26... b5 {[%clk 0:00:35.5]} 27. Qa8 {[%clk 0:00:05.5]} 27...
Qc6+ {[%clk 0:00:35.6]} 28. Qxc6 {[%clk 0:00:05.6]} 28... Rxc6 {[%clk
0:00:36.5]} 29. Rd4 {[%clk 0:00:04.4]} 29... Ra6 {[%clk 0:00:33.8]} 30. Rd2
{[%clk 0:00:04.5]} 30... Ra4 {[%clk 0:00:33.4]} 31. Rb2 {[%clk 0:00:04.5]} 31...
a6 {[%clk 0:00:33.8]} 32. Kf3 {[%clk 0:00:05]} 32... Kf6 {[%clk 0:00:33.7]} 33.
Ke2 {[%clk 0:00:05.6]} 33... Ra3 {[%clk 0:00:32.8]} 34. Kd2 {[%clk 0:00:04.3]}
34... Kf5 {[%clk 0:00:33]} 35. Rc2 {[%clk 0:00:03.7]} 35... Ke4 {[%clk
0:00:30.7]} 36. Ke2 {[%clk 0:00:04]} 36... Kf5 {[%clk 0:00:24.8]} 37. f3 {[%clk
0:00:03.7]} 37... Kf6 {[%clk 0:00:25]} 38. Rd2 {[%clk 0:00:03.3]} 38... b4
{[%clk 0:00:25]} 39. Rb2 {[%clk 0:00:02.7]} 39... a5 {[%clk 0:00:25.6]} 40. Kd2
{[%clk 0:00:01.9]} 40... Kg7 {[%clk 0:00:25.9]} 41. Rc2 {[%clk 0:00:02]} 41...
Kh6 {[%clk 0:00:26.3]} 42. Ke2 {[%clk 0:00:02]} 42... Kh5 {[%clk 0:00:26.6]} 0-1

[Event "Late-Titled-Tuesday-Blitz-October-17-2023"]
[Site "Chess.com"]
[Date "2023.10.17"]
[Round "2"]
[White "KChor05TTV"]
[Black "GiorgianBarbosa"]
[Result "1-0"]
[WhiteElo "2665"]
[BlackElo "2368"]
[TimeControl "180+1"]
[EndTime "14:17:33 PDT"]
[Termination "KChor05TTV won by checkmate"]

1. d4 {[%clk 0:03:00.9]} 1... Nf6 {[%clk 0:02:59.8]} 2. c4 {[%clk 0:02:55.2]}
2... g6 {[%clk 0:02:59.3]} 3. Nc3 {[%clk 0:02:52.7]} 3... Bg7 {[%clk 0:03:00.2]}
4. e4 {[%clk 0:02:45.9]} 4... O-O {[%clk 0:03:01.1]} 5. Nf3 {[%clk 0:02:45.9]}
5... d6 {[%clk 0:02:58.5]} 6. Be2 {[%clk 0:02:46.1]} 6... Na6 {[%clk 0:02:54.5]}
7. O-O {[%clk 0:02:45.3]} 7... c6 {[%clk 0:02:53.9]} 8. Bg5 {[%clk 0:02:37.3]}
8... Nd7 {[%clk 0:02:46.4]} 9. Qd2 {[%clk 0:02:29.9]} 9... Qe8 {[%clk
0:02:46.6]} 10. Bh6 {[%clk 0:02:25]} 10... e5 {[%clk 0:02:45.2]} 11. Rad1 {[%clk
0:02:19]} 11... Qe7 {[%clk 0:02:39]} 12. Bxg7 {[%clk 0:02:09.2]} 12... Kxg7
{[%clk 0:02:32.6]} 13. a3 {[%clk 0:02:05.1]} 13... Nc7 {[%clk 0:02:27.5]} 14. b4
{[%clk 0:02:02.2]} 14... Rd8 {[%clk 0:02:11.7]} 15. d5 {[%clk 0:01:49.1]} 15...
Nf8 {[%clk 0:02:07.9]} 16. c5 {[%clk 0:01:41.6]} 16... Bg4 {[%clk 0:01:56.3]}
17. h3 {[%clk 0:01:10.9]} 17... Bxf3 {[%clk 0:01:54.9]} 18. Bxf3 {[%clk
0:01:11.8]} 18... a5 {[%clk 0:01:48.2]} 19. Qe3 {[%clk 0:01:09.6]} 19... axb4
{[%clk 0:01:45]} 20. axb4 {[%clk 0:01:10.5]} 20... Ra3 {[%clk 0:01:40.8]} 21.
dxc6 {[%clk 0:01:03.2]} 21... dxc5 {[%clk 0:01:14.9]} 22. Rxd8 {[%clk
0:00:46.5]} 22... Qxd8 {[%clk 0:01:14.7]} 23. Qxc5 {[%clk 0:00:46.8]} 23... bxc6
{[%clk 0:00:56.6]} 24. Qxe5+ {[%clk 0:00:41]} 24... Kg8 {[%clk 0:00:52.7]} 25.
Rd1 {[%clk 0:00:38.4]} 25... Qc8 {[%clk 0:00:41.4]} 26. Bg4 {[%clk 0:00:36]}
26... Nce6 {[%clk 0:00:35.6]} 27. b5 {[%clk 0:00:31.1]} 27... cxb5 {[%clk
0:00:21.7]} 28. Nd5 {[%clk 0:00:30.5]} 28... Nd7 {[%clk 0:00:12.4]} 29. Ne7+
{[%clk 0:00:28.1]} 29... Kf8 {[%clk 0:00:05.5]} 30. Qh8+ {[%clk 0:00:28.3]}
30... Kxe7 {[%clk 0:00:05.6]} 31. Qxc8 {[%clk 0:00:29.2]} 31... h5 {[%clk
0:00:05.3]} 32. Qxd7+ {[%clk 0:00:28.2]} 32... Kf6 {[%clk 0:00:05]} 33. Bxe6
{[%clk 0:00:28]} 33... fxe6 {[%clk 0:00:04.9]} 34. Qd8+ {[%clk 0:00:28.7]} 34...
Kg7 {[%clk 0:00:03.3]} 35. Rd7+ {[%clk 0:00:28.2]} 35... Kh6 {[%clk 0:00:04.2]}
36. Qf8+ {[%clk 0:00:21.7]} 36... Kg5 {[%clk 0:00:04.1]} 37. f4+ {[%clk
0:00:21.6]} 37... Kh4 {[%clk 0:00:03.9]} 38. Qf6+ {[%clk 0:00:22.3]} 38... Kg3
{[%clk 0:00:01.5]} 39. Qg5# {[%clk 0:00:23.2]} 1-0

[Event "Late-Titled-Tuesday-Blitz-October-17-2023"]
[Site "Chess.com"]
[Date "2023.10.17"]
[Round "2"]
[White "expii"]
[Black "Carlitus2004"]
[Result "0-1"]
[WhiteElo "2236"]
[BlackElo "2474"]
[TimeControl "180+1"]
[EndTime "14:17:34 PDT"]
[Termination "Carlitus2004 won by resignation"]

1. e4 {[%clk 0:03:00.9]} 1... e6 {[%clk 0:02:56.7]} 2. d4 {[%clk 0:03:00.2]}
2... a6 {[%clk 0:02:57.3]} 3. Nf3 {[%clk 0:02:56.1]} 3... d5 {[%clk 0:02:56.2]}
4. e5 {[%clk 0:02:55.3]} 4... c5 {[%clk 0:02:56.3]} 5. c3 {[%clk 0:02:51.9]}
5... Bd7 {[%clk 0:02:54.3]} 6. Be2 {[%clk 0:02:50.7]} 6... Nc6 {[%clk
0:02:52.9]} 7. O-O {[%clk 0:02:48]} 7... Rc8 {[%clk 0:02:48.4]} 8. Be3 {[%clk
0:02:41.4]} 8... cxd4 {[%clk 0:02:47]} 9. cxd4 {[%clk 0:02:42.3]} 9... Nge7
{[%clk 0:02:47]} 10. Nc3 {[%clk 0:02:41.4]} 10... Nf5 {[%clk 0:02:46.2]} 11. Qd2
{[%clk 0:02:29.7]} 11... Be7 {[%clk 0:02:45.6]} 12. a3 {[%clk 0:02:27.6]} 12...
O-O {[%clk 0:02:45.5]} 13. b4 {[%clk 0:02:22.6]} 13... Na7 {[%clk 0:02:39.4]}
14. Bd3 {[%clk 0:02:18.1]} 14... Nb5 {[%clk 0:02:32.5]} 15. Nxb5 {[%clk
0:02:16.9]} 15... Bxb5 {[%clk 0:02:32.9]} 16. Bxb5 {[%clk 0:02:06.4]} 16... axb5
{[%clk 0:02:33.8]} 17. Rac1 {[%clk 0:02:06.1]} 17... Rc4 {[%clk 0:02:32.6]} 18.
Rxc4 {[%clk 0:01:56.9]} 18... bxc4 {[%clk 0:02:25]} 19. Ne1 {[%clk 0:01:54]}
19... Qa8 {[%clk 0:02:21.8]} 20. Nc2 {[%clk 0:01:53.9]} 20... Qa4 {[%clk
0:01:56.5]} 21. Qc3 {[%clk 0:01:49.3]} 21... Nxe3 {[%clk 0:01:37.3]} 22. fxe3
{[%clk 0:01:42.1]} 22... Qb3 {[%clk 0:01:35.2]} 23. Qxb3 {[%clk 0:01:37]} 23...
cxb3 {[%clk 0:01:36.1]} 24. Na1 {[%clk 0:01:36.8]} 24... b2 {[%clk 0:01:24.5]}
25. Nb3 {[%clk 0:01:32.7]} 25... Ra8 {[%clk 0:01:24.8]} 26. Rb1 {[%clk
0:01:26.7]} 26... Rxa3 {[%clk 0:01:16.6]} 27. Rxb2 {[%clk 0:01:22.3]} 27... Bxb4
{[%clk 0:01:16.6]} 28. Nc5 {[%clk 0:01:20.5]} 28... Bxc5 {[%clk 0:01:05.1]} 29.
dxc5 {[%clk 0:01:21.4]} 29... Rxe3 {[%clk 0:00:55.2]} 30. Rxb7 {[%clk 0:01:02]}
30... g5 {[%clk 0:00:54.5]} 31. c6 {[%clk 0:00:55]} 31... Rc3 {[%clk 0:00:54.2]}
32. c7 {[%clk 0:00:55.3]} 32... Kg7 {[%clk 0:00:54.4]} 33. Kf2 {[%clk
0:00:55.5]} 33... Kg6 {[%clk 0:00:50.3]} 34. g4 {[%clk 0:00:54.7]} 34... h5
{[%clk 0:00:49.8]} 35. h3 {[%clk 0:00:53.3]} 35... hxg4 {[%clk 0:00:43.6]} 36.
hxg4 {[%clk 0:00:52.4]} 36... f6 {[%clk 0:00:41.8]} 37. exf6 {[%clk 0:00:48.6]}
37... Kxf6 {[%clk 0:00:42.7]} 38. Ke2 {[%clk 0:00:48.1]} 38... Ke5 {[%clk
0:00:34.6]} 39. Kd2 {[%clk 0:00:47.3]} 39... d4 {[%clk 0:00:34.7]} 40. Rb5+
{[%clk 0:00:41.4]} 40... Kf4 {[%clk 0:00:34.9]} 41. Rb4 {[%clk 0:00:22.8]} 41...
e5 {[%clk 0:00:30.3]} 42. Rb7 {[%clk 0:00:21.4]} 42... Kxg4 {[%clk 0:00:27.2]}
43. Ra7 {[%clk 0:00:19]} 43... Kf4 {[%clk 0:00:24.1]} 44. Rb7 {[%clk 0:00:17.2]}
44... g4 {[%clk 0:00:24]} 45. Ke2 {[%clk 0:00:15.7]} 45... g3 {[%clk 0:00:23.6]}
46. Kf1 {[%clk 0:00:15.7]} 46... Kf3 {[%clk 0:00:21.9]} 47. Rb3 {[%clk
0:00:15.3]} 47... Rxb3 {[%clk 0:00:20.3]} 0-1

[Event "Late-Titled-Tuesday-Blitz-October-17-2023"]
[Site "Chess.com"]
[Date "2023.10.17"]
[Round "2"]
[White "SereneSalmon"]
[Black "elprimo2012mortis"]
[Result "1-0"]
[WhiteElo "2436"]
[BlackElo "2699"]
[TimeControl "180+1"]
[EndTime "14:17:40 PDT"]
[Termination "SereneSalmon won on time"]

1. d4 {[%clk 0:03:00.9]} 1... Nf6 {[%clk 0:02:55.3]} 2. c4 {[%clk 0:03:01.1]}
2... e6 {[%clk 0:02:54.8]} 3. Nf3 {[%clk 0:03:01.1]} 3... d5 {[%clk 0:02:51.3]}
4. g3 {[%clk 0:03:01.4]} 4... Bb4+ {[%clk 0:02:51.2]} 5. Bd2 {[%clk 0:03:01.5]}
5... a5 {[%clk 0:02:51.6]} 6. Bg2 {[%clk 0:03:01.3]} 6... O-O {[%clk 0:02:51.6]}
7. Qc1 {[%clk 0:03:02]} 7... c5 {[%clk 0:02:48.8]} 8. dxc5 {[%clk 0:03:01.1]}
8... d4 {[%clk 0:02:48.8]} 9. Bxb4 {[%clk 0:03:00.9]} 9... axb4 {[%clk
0:02:48.9]} 10. Ne5 {[%clk 0:02:59.4]} 10... Qc7 {[%clk 0:02:42.9]} 11. Nd3
{[%clk 0:02:53.6]} 11... e5 {[%clk 0:02:28.6]} 12. Nd2 {[%clk 0:02:48.4]} 12...
Na6 {[%clk 0:02:21.5]} 13. O-O {[%clk 0:02:38.9]} 13... Bf5 {[%clk 0:02:20.7]}
14. Nb3 {[%clk 0:02:25.5]} 14... Rad8 {[%clk 0:02:15.7]} 15. Qd2 {[%clk
0:02:16.2]} 15... Ne4 {[%clk 0:01:43.7]} 16. Bxe4 {[%clk 0:02:08.1]} 16... Bxe4
{[%clk 0:01:43.7]} 17. Nxb4 {[%clk 0:01:57.4]} 17... Nxc5 {[%clk 0:01:42.4]} 18.
f3 {[%clk 0:01:43.9]} 18... Nxb3 {[%clk 0:01:23.9]} 19. axb3 {[%clk 0:01:43]}
19... Bc6 {[%clk 0:01:18.8]} 20. Nxc6 {[%clk 0:01:14]} 20... bxc6 {[%clk
0:01:19.7]} 21. Qa5 {[%clk 0:01:13.1]} 21... Qe7 {[%clk 0:01:08.3]} 22. Qb6
{[%clk 0:00:59.6]} 22... Qe6 {[%clk 0:00:54.2]} 23. Ra6 {[%clk 0:00:52.3]} 23...
Rc8 {[%clk 0:00:53.1]} 24. Rfa1 {[%clk 0:00:42.9]} 24... h5 {[%clk 0:00:49.8]}
25. Qc5 {[%clk 0:00:31.7]} 25... h4 {[%clk 0:00:47.7]} 26. g4 {[%clk 0:00:25.7]}
26... f5 {[%clk 0:00:36.9]} 27. gxf5 {[%clk 0:00:20.5]} 27... Rxf5 {[%clk
0:00:34.7]} 28. Ra7 {[%clk 0:00:17.6]} 28... e4 {[%clk 0:00:29.4]} 29. Qe7
{[%clk 0:00:14.3]} 29... Qg6+ {[%clk 0:00:05.8]} 30. Kh1 {[%clk 0:00:14.7]}
30... Re8 {[%clk 0:00:06.2]} 31. Qd7 {[%clk 0:00:12.4]} 31... exf3 {[%clk
0:00:04.5]} 32. Rg1 {[%clk 0:00:08.9]} 32... Qg2+ {[%clk 0:00:02.7]} 33. Rxg2
{[%clk 0:00:08.4]} 33... fxg2+ {[%clk 0:00:03.6]} 34. Kxg2 {[%clk 0:00:09.1]}
34... Rxe2+ {[%clk 0:00:04]} 35. Kh3 {[%clk 0:00:09.7]} 35... Re3+ {[%clk
0:00:03.9]} 36. Kg4 {[%clk 0:00:10]} 36... Rf4+ {[%clk 0:00:01.1]} 37. Kxf4
{[%clk 0:00:10.3]} 37... Re7 {[%clk 0:00:01.3]} 38. Qxe7 {[%clk 0:00:10.7]} 1-0

[Event "Late-Titled-Tuesday-Blitz-October-17-2023"]
[Site "Chess.com"]
[Date "2023.10.17"]
[Round "2"]
[White "NigelDwarf"]
[Black "GAO"]
[Result "1/2-1/2"]
[WhiteElo "2544"]
[BlackElo "2351"]
[TimeControl "180+1"]
[EndTime "14:17:45 PDT"]
[Termination "Game drawn by repetition"]

1. Nf3 {[%clk 0:02:59.4]} 1... Nf6 {[%clk 0:02:12.8]} 2. c4 {[%clk 0:02:50.7]}
2... g6 {[%clk 0:02:11]} 3. Nc3 {[%clk 0:02:49.9]} 3... Bg7 {[%clk 0:02:05.5]}
4. e4 {[%clk 0:02:49.6]} 4... d6 {[%clk 0:01:50.5]} 5. d4 {[%clk 0:02:48.2]}
5... O-O {[%clk 0:01:50]} 6. h3 {[%clk 0:02:43.4]} 6... e5 {[%clk 0:01:48.4]} 7.
d5 {[%clk 0:02:41.8]} 7... a5 {[%clk 0:01:40.2]} 8. Be3 {[%clk 0:02:39.3]} 8...
Na6 {[%clk 0:01:39.5]} 9. g4 {[%clk 0:02:35.4]} 9... Nc5 {[%clk 0:01:37.8]} 10.
Nd2 {[%clk 0:02:34.1]} 10... b6 {[%clk 0:01:35]} 11. Be2 {[%clk 0:02:31.2]}
11... Bd7 {[%clk 0:01:18.8]} 12. h4 {[%clk 0:02:28.5]} 12... a4 {[%clk 0:01:05]}
13. h5 {[%clk 0:02:20.9]} 13... Ne8 {[%clk 0:01:03]} 14. hxg6 {[%clk 0:02:14.7]}
14... fxg6 {[%clk 0:01:02.9]} 15. Nf1 {[%clk 0:02:05.6]} 15... c6 {[%clk
0:00:44.8]} 16. Qd2 {[%clk 0:01:56.6]} 16... b5 {[%clk 0:00:44.3]} 17. Bxc5
{[%clk 0:01:35.4]} 17... dxc5 {[%clk 0:00:44.1]} 18. dxc6 {[%clk 0:01:35.8]}
18... Bxc6 {[%clk 0:00:43.4]} 19. cxb5 {[%clk 0:01:36.4]} 19... Bb7 {[%clk
0:00:40.6]} 20. Bc4+ {[%clk 0:01:34.8]} 20... Kh8 {[%clk 0:00:40.2]} 21. Qxd8
{[%clk 0:01:05.1]} 21... Rxd8 {[%clk 0:00:41.1]} 22. Ne3 {[%clk 0:01:04.9]}
22... a3 {[%clk 0:00:41.6]} 23. bxa3 {[%clk 0:01:02.5]} 23... Nd6 {[%clk
0:00:39]} 24. Bd5 {[%clk 0:00:58.8]} 24... Bxd5 {[%clk 0:00:37.7]} 25. exd5
{[%clk 0:00:55.7]} 25... e4 {[%clk 0:00:36.6]} 26. Rc1 {[%clk 0:00:55.3]} 26...
Ra8 {[%clk 0:00:30.3]} 27. a4 {[%clk 0:00:32.4]} 27... Bd4 {[%clk 0:00:22.5]}
28. O-O {[%clk 0:00:28.4]} 28... Rf3 {[%clk 0:00:21.1]} 29. Ned1 {[%clk
0:00:20.6]} 29... Rf4 {[%clk 0:00:18.8]} 30. b6 {[%clk 0:00:17.2]} 30... Rxg4+
{[%clk 0:00:18.6]} 31. Kh2 {[%clk 0:00:17.2]} 31... Be5+ {[%clk 0:00:15.9]} 32.
Kh3 {[%clk 0:00:17.3]} 32... h5 {[%clk 0:00:13.3]} 33. Ne3 {[%clk 0:00:14.5]}
33... Rf4 {[%clk 0:00:13.5]} 34. Nb5 {[%clk 0:00:13]} 34... Nxb5 {[%clk
0:00:12.7]} 35. axb5 {[%clk 0:00:12.7]} 35... Rb8 {[%clk 0:00:13.6]} 36. Nc4
{[%clk 0:00:11.9]} 36... Bf6 {[%clk 0:00:11.8]} 37. a4 {[%clk 0:00:10.6]} 37...
Rh4+ {[%clk 0:00:11.8]} 38. Kg3 {[%clk 0:00:10.9]} 38... Rg4+ {[%clk 0:00:12.7]}
39. Kh2 {[%clk 0:00:10.9]} 39... Rh4+ {[%clk 0:00:13.6]} 40. Kg3 {[%clk
0:00:11.5]} 40... Rg4+ {[%clk 0:00:14.4]} 41. Kh3 {[%clk 0:00:12.2]} 41... Rh4+
{[%clk 0:00:15.3]} 42. Kg3 {[%clk 0:00:12.9]} 1/2-1/2

[Event "Late-Titled-Tuesday-Blitz-October-17-2023"]
[Site "Chess.com"]
[Date "2023.10.17"]
[Round "2"]
[White "HajiyevKanan"]
[Black "acertijo08"]
[Result "1-0"]
[WhiteElo "2536"]
[BlackElo "2337"]
[TimeControl "180+1"]
[EndTime "14:17:45 PDT"]
[Termination "HajiyevKanan won by resignation"]

1. d4 {[%clk 0:03:00.9]} 1... Nf6 {[%clk 0:02:59.6]} 2. Nf3 {[%clk 0:03:01]}
2... e6 {[%clk 0:02:59.7]} 3. c4 {[%clk 0:03:01]} 3... d5 {[%clk 0:02:59.6]} 4.
cxd5 {[%clk 0:03:01.5]} 4... exd5 {[%clk 0:02:59.6]} 5. Nc3 {[%clk 0:03:02.4]}
5... c6 {[%clk 0:02:56.6]} 6. Qc2 {[%clk 0:03:01]} 6... Bd6 {[%clk 0:02:53.2]}
7. Bg5 {[%clk 0:02:59.6]} 7... Nbd7 {[%clk 0:02:36.9]} 8. e3 {[%clk 0:02:46.5]}
8... O-O {[%clk 0:02:35.1]} 9. Bd3 {[%clk 0:02:45.7]} 9... h6 {[%clk 0:02:35.3]}
10. Bh4 {[%clk 0:02:46.3]} 10... Re8 {[%clk 0:02:32.2]} 11. O-O {[%clk
0:02:46.5]} 11... Be7 {[%clk 0:02:11.4]} 12. Rab1 {[%clk 0:02:45.9]} 12... a5
{[%clk 0:02:09.7]} 13. Bg3 {[%clk 0:02:39.3]} 13... Bf8 {[%clk 0:02:02.2]} 14.
Bh4 {[%clk 0:02:38.4]} 14... Be7 {[%clk 0:02:01.7]} 15. Bg3 {[%clk 0:02:38.9]}
15... Bf8 {[%clk 0:02:01.5]} 16. h3 {[%clk 0:02:39.6]} 16... Qe7 {[%clk
0:01:36.9]} 17. Rfe1 {[%clk 0:02:36.1]} 17... Ne4 {[%clk 0:01:36.7]} 18. Bxe4
{[%clk 0:02:34.4]} 18... dxe4 {[%clk 0:01:36.9]} 19. Nd2 {[%clk 0:02:33.7]}
19... Nf6 {[%clk 0:01:35.5]} 20. Nc4 {[%clk 0:02:33.1]} 20... Qd8 {[%clk
0:01:28.5]} 21. Ne5 {[%clk 0:02:31]} 21... Bf5 {[%clk 0:01:25.3]} 22. Red1
{[%clk 0:02:28.8]} 22... Bb4 {[%clk 0:00:59.6]} 23. Qb3 {[%clk 0:02:25.1]} 23...
Qe7 {[%clk 0:00:56.5]} 24. a3 {[%clk 0:02:18.4]} 24... Bxc3 {[%clk 0:00:56.3]}
25. bxc3 {[%clk 0:02:18.3]} 25... a4 {[%clk 0:00:49.7]} 26. Qxb7 {[%clk
0:02:18]} 26... Qxa3 {[%clk 0:00:47.7]} 27. Qxf7+ {[%clk 0:02:16.7]} 27... Kh7
{[%clk 0:00:43.9]} 28. Rb7 {[%clk 0:02:16.2]} 28... Qf8 {[%clk 0:00:37.9]} 29.
Qc7 {[%clk 0:01:53.8]} 29... Rec8 {[%clk 0:00:34.2]} 30. Qb6 {[%clk 0:01:43.9]}
30... Nd5 {[%clk 0:00:31.4]} 31. Qb2 {[%clk 0:01:32.5]} 31... a3 {[%clk
0:00:31.5]} 32. Qc2 {[%clk 0:01:32.6]} 32... a2 {[%clk 0:00:31.5]} 33. Ra1
{[%clk 0:01:31.9]} 33... Qa3 {[%clk 0:00:30.2]} 34. Nc4 {[%clk 0:01:24.8]} 34...
Qxc3 {[%clk 0:00:29.5]} 35. Qxc3 {[%clk 0:01:23]} 35... Nxc3 {[%clk 0:00:29.7]}
36. Nb6 {[%clk 0:01:22.5]} 36... Ne2+ {[%clk 0:00:27.4]} 37. Kh2 {[%clk
0:01:21.9]} 37... Nxg3 {[%clk 0:00:28]} 38. Nxa8 {[%clk 0:01:10.2]} 38... Rxa8
{[%clk 0:00:23.5]} 39. Kxg3 {[%clk 0:01:05.4]} 39... Be6 {[%clk 0:00:23.7]} 40.
Kf4 {[%clk 0:01:04.5]} 40... Bd5 {[%clk 0:00:23.8]} 41. Ke5 {[%clk 0:00:56.4]}
41... Rf8 {[%clk 0:00:23.3]} 42. Rb2 {[%clk 0:00:54.6]} 42... Re8+ {[%clk
0:00:22.4]} 43. Kd6 {[%clk 0:00:50.3]} 43... Rd8+ {[%clk 0:00:22.4]} 44. Kc7
{[%clk 0:00:50.5]} 44... Rf8 {[%clk 0:00:22.6]} 45. Raxa2 {[%clk 0:00:50.1]}
45... Bxa2 {[%clk 0:00:21.5]} 46. Rxa2 {[%clk 0:00:51]} 46... Rf6 {[%clk
0:00:21.1]} 47. Rc2 {[%clk 0:00:49.5]} 47... h5 {[%clk 0:00:21.5]} 48. h4 {[%clk
0:00:49.1]} 48... g6 {[%clk 0:00:20.2]} 49. Kd7 {[%clk 0:00:43.6]} 49... Kh6
{[%clk 0:00:19.5]} 50. Ke7 {[%clk 0:00:42.4]} 50... Kg7 {[%clk 0:00:19.3]} 51.
Rxc6 {[%clk 0:00:35.3]} 51... Rxf2 {[%clk 0:00:19.3]} 52. d5 {[%clk 0:00:35.7]}
52... Re2 {[%clk 0:00:14.8]} 53. d6 {[%clk 0:00:35.4]} 53... Rxe3 {[%clk
0:00:15.3]} 54. d7 {[%clk 0:00:35.7]} 54... Rd3 {[%clk 0:00:15.8]} 55. Rd6
{[%clk 0:00:36.2]} 55... Rxd6 {[%clk 0:00:15.6]} 56. Kxd6 {[%clk 0:00:37.1]}
56... e3 {[%clk 0:00:16.5]} 57. d8=Q {[%clk 0:00:37.5]} 57... e2 {[%clk
0:00:17.4]} 58. Qe7+ {[%clk 0:00:38.2]} 1-0